[Event "African Games-chT 2019"]
[Site "Casablanca"]
[Date "2019.08.24"]
[Round "5.24"]
[White "Mentile, Lishen"]
[Black "Ofowino, Toritsemuwa"]
[Result "0-1"]
[ECO "B00"]
[WhiteElo "1513"]
[BlackElo "1877"]
[Annotator "NA"]
[PlyCount "80"]
[EventDate "2019.08.24"]
[EventType "team-tourn"]
[EventCountry "MAR"]
[SourceTitle "playchess.com"]
[Source "ChessBase"]
[SourceQuality "1"]
[WhiteTeam "Namibia"]
[BlackTeam "Nigeria"]
[WhiteTeamCountry "NAM"]
[BlackTeamCountry "NGR"]
[TimeControl "900+10"]

1. e4 {[%emt 0:00:00]} d6 {[%emt 0:00:00]} 2. Nc3 {[%emt 0:00:07]} Nf6 {[%emt 0:00:00]} 3. h3 e5 {[%emt 0:00:28]} 4. Nf3 {[%emt 0:00:11]} Be7 {[%emt 0:00:38]} 5. Bc4 {[%emt 0:00:13]} c6 {[%emt 0:00:05]} 6. d3 {[%emt 0:00:09]} a5 {[%emt 0:00:06]} 7. a4 {[%emt 0:00:02]} O-O {[%emt 0:00:27]} 8. O-O {[%emt 0:00:02]} Qc7 {[%emt 0:00:16]} 9. Be3 {[%emt 0:00:02]} Nbd7 {[%emt 0:00:26]} 10. Qd2 {[%emt 0:00:25]} Nb6 {[%emt 0:00:40]} 11. Bb3 {[%emt 0:00:02]} Bd7 {[%emt 0:00:20]} 12. Ne2 {[%emt 0:00:57]} Rfd8 {[%emt 0:00:31]} 13. Rfd1 {[%emt 0:01:19]} Be8 {[%emt 0:00:08]} 14. c3 {[%emt 0:00:39]} Nbd7 {[%emt 0:00:33]} 15. Qc2 {[%emt 0:00:11]} Nf8 {[%emt 0:00:05]} 16. Ng3 {[%emt 0:00:28]} Bd7 {[%emt 0:01:17]} 17. Ng5 {[%emt 0:00:31]} Be6 {[%emt 0:00:36]} 18. Nxe6 {[%emt 0:00:20]} fxe6 {[%emt 0:00:02]} 19. Rac1 {[%emt 0:00:27]} d5 {[%emt 0:00:08]} 20. exd5 {[%emt 0:00:14]} exd5 {[%emt 0:00:02]} 21. Nf5 {[%emt 0:00:08]} Kh8 {[%emt 0:00:33]} 22. Qe2 {[%emt 0:00:36]} Ng6 {[%emt 0:00:03]} 23. Bg5 {[%emt 0:01:43]} Rf8 {[%emt 0:00:57]} 24. Nxe7 {[%emt 0:01:45]} Qxe7 {[%emt 0:00:02]} 25. Qe3 {[%emt 0:00:31]} h6 {[%emt 0:00:11]} 26. Bxf6 {[%emt 0:00:14]} Qxf6 {[%emt 0:00:02]} 27. Rf1 {[%emt 0:01:06]} Nf4 {[%emt 0:00:53]} 28. Rce1 Qg6 {[%emt 0:00:42]} 29. Qg3 {[%emt 0:02:38]} Qxg3 {[%emt 0:00:07]} 30. fxg3 {[%emt 0:00:02]} Nxd3 {[%emt 0:00:02]} 31. Re2 {[%emt 0:00:16]} Rxf1+ {[%emt 0:00:08]} 32. Kxf1 {[%emt 0:00:02]} Rf8+ {[%emt 0:00:01]} 33. Kg1 {[%emt 0:00:05]} e4 34. c4 {[%emt 0:00:38]} Nc5 {[%emt 0:00:50]} 35. Ba2 {[%emt 0:02:09]} d4 {[%emt 0:00:04]} 36. Bb1 {[%emt 0:01:03]} e3 {[%emt 0:00:14]} 37. Ba2 {[%emt 0:01:11]} Re8 {[%emt 0:00:03]} 38. Bb1 {[%emt 0:00:35]} d3 {[%emt 0:00:14]} 39. Bxd3 {[%emt 0:00:11]} Nxd3 {[%emt 0:00:02]} 40. Kf1 {[%emt 0:00:12]} Nc1 {[%emt 0:00:29]} 0-1

[Event "African Games-chT 2019"]
[Site "Casablanca"]
[Date "2019.08.24"]
[Round "5.25"]
[White "Amba, Oyon Marius Claude"]
[Black "Mesfin, Leykun"]
[Result "1/2-1/2"]
[ECO "B93"]
[WhiteElo "1911"]
[BlackElo "2151"]
[Annotator "NA"]
[PlyCount "127"]
[EventDate "2019.08.24"]
[EventType "team-tourn"]
[EventCountry "MAR"]
[SourceTitle "playchess.com"]
[Source "ChessBase"]
[SourceQuality "1"]
[WhiteTeam "CMR"]
[BlackTeam "Ethiopia"]
[BlackTeamCountry "ETH"]
[TimeControl "900+10"]

1. e4 {[%emt 0:00:00]} c5 {[%emt 0:00:05]} 2. Nf3 {[%emt 0:00:00]} d6 {[%emt 0:00:03]} 3. d4 {[%emt 0:00:00]} cxd4 {[%emt 0:00:04]} 4. Nxd4 {[%emt 0:00:00]} Nf6 {[%emt 0:00:01]} 5. Nc3 {[%emt 0:00:01]} a6 {[%emt 0:00:02]} 6. f4 {[%emt 0:00:07]} e5 {[%emt 0:01:29]} 7. Nf3 {[%emt 0:00:02]} Qc7 {[%emt 0:01:12]} 8. Bd3 {[%emt 0:00:05]} Nc6 {[%emt 0:00:37]} 9. O-O {[%emt 0:00:03]} Be7 {[%emt 0:00:36]} 10. Kh1 {[%emt 0:00:03]} Bd7 {[%emt 0:02:31]} 11. Qe1 {[%emt 0:00:07]} O-O-O {[%emt 0:03:07]} 12. a3 {[%emt 0:00:07]} Bg4 {[%emt 0:00:19]} 13. fxe5 {[%emt 0:00:31]} dxe5 {[%emt 0:00:20]} 14. Bg5 {[%emt 0:00:02]} Bxf3 {[%emt 0:00:10]} 15. Rxf3 {[%emt 0:00:03]} Nd4 {[%emt 0:00:06]} 16. Rf1 {[%emt 0:00:12]} Kb8 {[%emt 0:00:55]} 17. Bxf6 {[%emt 0:00:09]} Bxf6 {[%emt 0:00:16]} 18. Nd5 {[%emt 0:00:02]} Qd6 {[%emt 0:00:36]} 19. Qf2 {[%emt 0:00:47]} Rc8 {[%emt 0:01:45]} 20. Rac1 {[%emt 0:00:13]} Bg5 {[%emt 0:00:14]} 21. Rcd1 {[%emt 0:00:02]} f6 {[%emt 0:00:07]} 22. c3 {[%emt 0:00:21]} Ne6 {[%emt 0:00:23]} 23. Bc2 {[%emt 0:00:12]} Qc5 {[%emt 0:00:20]} 24. Qxc5 {[%emt 0:04:50]} Rxc5 {[%emt 0:00:04]} 25. b4 {[%emt 0:00:40]} Rcc8 {[%emt 0:00:36]} 26. Bb3 {[%emt 0:00:09]} Nf4 {[%emt 0:00:02]} 27. c4 {[%emt 0:00:31]} Ne2 {[%emt 0:00:24]} 28. c5 {[%emt 0:00:28]} Nd4 {[%emt 0:00:04]} 29. Ba4 {[%emt 0:00:07]} Rcd8 {[%emt 0:00:20]} 30. Nb6 {[%emt 0:00:33]} Kc7 {[%emt 0:00:21]} 31. Nc4 {[%emt 0:00:09]} h5 {[%emt 0:00:27]} 32. Nd6 {[%emt 0:00:04]} b5 {[%emt 0:00:23]} 33. Rxd4 {[%emt 0:00:19]} exd4 {[%emt 0:00:06]} 34. Bb3 {[%emt 0:00:07]} Rxd6 {[%emt 0:00:02]} 35. cxd6+ {[%emt 0:00:02]} Kxd6 {[%emt 0:00:01]} 36. Rf5 {[%emt 0:00:19]} Be3 {[%emt 0:00:33]} 37. Rd5+ {[%emt 0:00:09]} Kc6 {[%emt 0:00:04]} 38. g3 {[%emt 0:00:13]} h4 {[%emt 0:00:17]} 39. Kg2 {[%emt 0:00:10]} hxg3 {[%emt 0:00:02]} 40. hxg3 {[%emt 0:00:02]} Re8 {[%emt 0:00:49]} 41. Kf3 {[%emt 0:00:16]} Kc7 {[%emt 0:00:31]} 42. a4 {[%emt 0:00:27]} Re5 {[%emt 0:00:05]} 43. axb5 {[%emt 0:00:49]} axb5 {[%emt 0:00:05]} 44. Bc2 {[%emt 0:01:20]} Rxd5 45. exd5 {[%emt 0:00:02]} Kd6 {[%emt 0:00:02]} 46. Ke4 {[%emt 0:00:09]} Bf2 {[%emt 0:00:27]} 47. g4 {[%emt 0:00:06]} Be1 {[%emt 0:00:19]} 48. Bd3 {[%emt 0:00:08]} Bxb4 {[%emt 0:00:04]} 49. Bxb5 {[%emt 0:00:01]} Bc5 {[%emt 0:00:02]} 50. Bc4 {[%emt 0:00:08]} g6 {[%emt 0:00:11]} 51. Bb5 {[%emt 0:00:54]} Bb6 {[%emt 0:00:17]} 52. Be8 {[%emt 0:00:06]} g5 {[%emt 0:00:04]} 53. Bc6 {[%emt 0:00:11]} Bc5 {[%emt 0:00:07]} 54. Ba4 {[%emt 0:00:14]} Ke7 {[%emt 0:00:08]} 55. Bb3 {[%emt 0:00:07]} Kd6 {[%emt 0:00:05]} 56. Bc4 {[%emt 0:00:03]} Bb6 {[%emt 0:00:03]} 57. Bd3 {[%emt 0:00:15]} Ke7 {[%emt 0:00:17]} 58. Kf5 {[%emt 0:00:09]} Bc7 {[%emt 0:00:05]} 59. Bc4 {[%emt 0:00:15]} Be5 {[%emt 0:00:03]} 60. Bd3 {[%emt 0:00:08]} Kd6 {[%emt 0:00:07]} 61. Ke4 {[%emt 0:00:02]} Kc5 {[%emt 0:00:05]} 62. Ba6 {[%emt 0:00:00]} Bf4 {[%emt 0:00:00]} 63. Bd3 {[%emt 0:00:00]} Be5 {[%emt 0:00:05]} 64. Ba6 {[%emt 0:00:00]} 1/2-1/2

[Event "African Games-chT 2019"]
[Site "Casablanca"]
[Date "2019.08.24"]
[Round "5.26"]
[White "Gole, Habtamu Ashenafi"]
[Black "Ebosse, Kingue Victor Patric"]
[Result "1/2-1/2"]
[ECO "B52"]
[WhiteElo "2046"]
[BlackElo "2055"]
[Annotator "NA"]
[PlyCount "109"]
[EventDate "2019.08.24"]
[EventType "team-tourn"]
[EventCountry "MAR"]
[SourceTitle "playchess.com"]
[Source "ChessBase"]
[SourceQuality "1"]
[WhiteTeam "Ethiopia"]
[BlackTeam "CMR"]
[WhiteTeamCountry "ETH"]
[TimeControl "900+10"]

1. e4 {[%emt 0:00:00]} c5 {[%emt 0:00:00]} 2. Nf3 {[%emt 0:00:00]} d6 {[%emt 0:00:00]} 3. Bb5+ {[%emt 0:00:00]} Bd7 {[%emt 0:00:00]} 4. Bxd7+ {[%emt 0:00:00]} Nxd7 {[%emt 0:00:00]} 5. O-O {[%emt 0:00:03]} Ngf6 {[%emt 0:00:00]} 6. Re1 {[%emt 0:00:01]} g6 {[%emt 0:00:00]} 7. c3 {[%emt 0:00:02]} Bg7 {[%emt 0:00:10]} 8. d4 {[%emt 0:00:02]} cxd4 {[%emt 0:00:02]} 9. cxd4 {[%emt 0:00:01]} O-O {[%emt 0:00:02]} 10. Nc3 {[%emt 0:00:02]} Rc8 {[%emt 0:00:01]} 11. h3 {[%emt 0:00:36]} a6 {[%emt 0:00:26]} 12. Be3 {[%emt 0:00:16]} b5 {[%emt 0:00:02]} 13. a3 {[%emt 0:00:11]} Nb6 {[%emt 0:00:14]} 14. Nd2 {[%emt 0:01:08]} e5 {[%emt 0:01:02]} 15. dxe5 {[%emt 0:00:07]} dxe5 {[%emt 0:00:03]} 16. Qb3 {[%emt 0:01:14]} Nh5 {[%emt 0:02:30]} 17. Rad1 {[%emt 0:00:04]} Qc7 {[%emt 0:00:37]} 18. Nf3 {[%emt 0:00:39]} Nc4 {[%emt 0:00:28]} 19. Nd5 {[%emt 0:00:07]} Qb7 {[%emt 0:00:10]} 20. Bg5 {[%emt 0:00:45]} Kh8 {[%emt 0:00:48]} 21. Nd2 {[%emt 0:01:59]} Na5 {[%emt 0:00:31]} 22. Qb4 {[%emt 0:01:34]} Nc6 {[%emt 0:00:06]} 23. Qb3 {[%emt 0:00:58]} Nd4 {[%emt 0:00:03]} 24. Qd3 {[%emt 0:00:10]} f5 {[%emt 0:01:11]} 25. f3 {[%emt 0:01:05]} Ne6 {[%emt 0:02:13]} 26. Be3 {[%emt 0:00:50]} fxe4 {[%emt 0:00:11]} 27. fxe4 {[%emt 0:00:04]} Nhf4 {[%emt 0:00:18]} 28. Qb3 {[%emt 0:00:34]} Nc5 {[%emt 0:00:52]} 29. Bxc5 {[%emt 0:00:41]} Rxc5 {[%emt 0:00:03]} 30. Qe3 {[%emt 0:00:38]} Rcc8 {[%emt 0:02:01]} 31. Nf3 {[%emt 0:00:50]} Rc2 {[%emt 0:01:38]} 32. Rd2 {[%emt 0:01:16]} Rxd2 {[%emt 0:00:03]} 33. Qxd2 {[%emt 0:00:04]} Nxh3+ {[%emt 0:00:31]} 34. gxh3 {[%emt 0:00:42]} Rxf3 {[%emt 0:00:02]} 35. Kg2 {[%emt 0:00:01]} Rf8 36. Rc1 {[%emt 0:00:26]} Qf7 {[%emt 0:01:24]} 37. Qe2 {[%emt 0:00:10]} Bh6 {[%emt 0:00:05]} 38. Rc7 {[%emt 0:00:10]} Qe6 {[%emt 0:00:29]} 39. Qg4 {[%emt 0:00:28]} Qxg4+ {[%emt 0:00:14]} 40. hxg4 {[%emt 0:00:01]} Bg5 {[%emt 0:00:18]} 41. b4 {[%emt 0:01:05]} Kg8 {[%emt 0:00:30]} 42. Rc6 {[%emt 0:00:08]} Ra8 {[%emt 0:00:25]} 43. Nb6 {[%emt 0:00:07]} Rd8 {[%emt 0:00:02]} 44. Nd5 {[%emt 0:00:09]} Ra8 {[%emt 0:00:07]} 45. Nc7 {[%emt 0:00:42]} Rd8 {[%emt 0:00:39]} 46. Nd5 {[%emt 0:00:21]} Ra8 {[%emt 0:00:12]} 47. Nb6 {[%emt 0:00:36]} Ra7 {[%emt 0:00:25]} 48. Nd5 {[%emt 0:00:33]} a5 {[%emt 0:00:12]} 49. Rb6 {[%emt 0:00:26]} axb4 {[%emt 0:00:05]} 50. axb4 {[%emt 0:00:01]} Ra2+ {[%emt 0:00:07]} 51. Kf3 {[%emt 0:00:05]} Ra3+ {[%emt 0:00:02]} 52. Kg2 {[%emt 0:00:07]} Ra2+ {[%emt 0:00:58]} 53. Kf3 {[%emt 0:00:01]} Ra3+ {[%emt 0:00:09]} 54. Kg2 {[%emt 0:00:02]} Ra2+ {[%emt 0:00:13]} 55. Kf3 {[%emt 0:00:42]} 1/2-1/2

[Event "African Games-chT 2019"]
[Site "Casablanca"]
[Date "2019.08.24"]
[Round "5.27"]
[White "Magne, Kouokam Sylviane"]
[Black "Haile, Lidet Abate"]
[Result "0-1"]
[ECO "D30"]
[WhiteElo "1317"]
[BlackElo "1593"]
[Annotator "NA"]
[PlyCount "116"]
[EventDate "2019.08.24"]
[EventType "team-tourn"]
[EventCountry "MAR"]
[SourceTitle "playchess.com"]
[Source "ChessBase"]
[SourceQuality "1"]
[WhiteTeam "CMR"]
[BlackTeam "Ethiopia"]
[BlackTeamCountry "ETH"]
[TimeControl "900+10"]

1. d4 {[%emt 0:00:00]} d5 {[%emt 0:00:00]} 2. c4 {[%emt 0:00:00]} e6 {[%emt 0:00:00]} 3. cxd5 {[%emt 0:00:00]} exd5 {[%emt 0:00:00]} 4. Nc3 {[%emt 0:00:03]} Nc6 {[%emt 0:00:04]} 5. Nf3 {[%emt 0:00:02]} Nf6 {[%emt 0:00:07]} 6. e3 {[%emt 0:00:06]} Bg4 {[%emt 0:00:16]} 7. Be2 {[%emt 0:00:19]} Be7 {[%emt 0:00:43]} 8. O-O {[%emt 0:00:07]} O-O {[%emt 0:00:03]} 9. a3 {[%emt 0:00:04]} h6 {[%emt 0:00:40]} 10. b4 {[%emt 0:00:17]} a6 {[%emt 0:00:45]} 11. Bb2 {[%emt 0:00:06]} Na7 {[%emt 0:00:47]} 12. Rc1 {[%emt 0:00:19]} c6 {[%emt 0:00:05]} 13. h3 {[%emt 0:00:35]} Bh5 {[%emt 0:00:19]} 14. Ne5 {[%emt 0:00:28]} Bxe2 {[%emt 0:00:20]} 15. Nxe2 {[%emt 0:00:04]} Bd6 {[%emt 0:00:07]} 16. Ng3 {[%emt 0:00:13]} Qc7 {[%emt 0:01:04]} 17. f4 {[%emt 0:00:23]} Nb5 {[%emt 0:00:48]} 18. Nf5 {[%emt 0:01:05]} Qc8 {[%emt 0:01:21]} 19. Qc2 {[%emt 0:00:22]} Ne4 {[%emt 0:00:44]} 20. Nh4 {[%emt 0:01:13]} Qd8 {[%emt 0:00:43]} 21. Nhf3 {[%emt 0:00:38]} Bc7 {[%emt 0:00:55]} 22. Qe2 {[%emt 0:00:36]} Re8 {[%emt 0:01:02]} 23. Nh2 {[%emt 0:00:38]} Ng3 {[%emt 0:00:28]} 24. Qf3 {[%emt 0:00:45]} Nxf1 {[%emt 0:00:04]} 25. Rxf1 {[%emt 0:00:02]} Qe7 {[%emt 0:00:11]} 26. Qh5 {[%emt 0:00:21]} f6 {[%emt 0:00:26]} 27. Neg4 {[%emt 0:00:14]} Qf7 {[%emt 0:00:49]} 28. Qf5 {[%emt 0:01:04]} Nd6 {[%emt 0:00:17]} 29. Qd3 {[%emt 0:00:26]} Nc4 {[%emt 0:00:52]} 30. Bc1 {[%emt 0:00:22]} Qe7 {[%emt 0:00:12]} 31. Re1 {[%emt 0:00:11]} Qe4 {[%emt 0:00:17]} 32. Qe2 {[%emt 0:00:57]} Re7 {[%emt 0:00:23]} 33. Nf2 {[%emt 0:00:03]} Qe6 {[%emt 0:00:04]} 34. Nhg4 {[%emt 0:00:09]} Rae8 {[%emt 0:00:05]} 35. e4 {[%emt 0:00:42]} dxe4 {[%emt 0:00:47]} 36. Be3 {[%emt 0:00:17]} Nxe3 {[%emt 0:00:13]} 37. Nxe3 {[%emt 0:00:02]} Bxf4 {[%emt 0:00:05]} 38. Nfg4 {[%emt 0:02:01]} Bxe3+ {[%emt 0:00:11]} 39. Nxe3 {[%emt 0:00:02]} f5 {[%emt 0:00:18]} 40. Rf1 {[%emt 0:00:07]} Rf8 {[%emt 0:00:07]} 41. h4 {[%emt 0:01:14]} f4 {[%emt 0:00:24]} 42. Nc4 {[%emt 0:00:57]} Qd5 {[%emt 0:00:53]} 43. Ne5 {[%emt 0:01:25]} Qxd4+ {[%emt 0:00:05]} 44. Kh1 {[%emt 0:00:13]} Qxe5 {[%emt 0:00:03]} 45. Qc4+ {[%emt 0:00:05]} Qd5 {[%emt 0:00:07]} 46. Qe2 {[%emt 0:00:14]} Ref7 {[%emt 0:00:13]} 47. Kh2 {[%emt 0:00:40]} f3 {[%emt 0:00:10]} 48. gxf3 {[%emt 0:00:03]} exf3 {[%emt 0:00:02]} 49. Qf2 {[%emt 0:00:27]} Qd6+ {[%emt 0:00:09]} 50. Kh1 {[%emt 0:00:08]} Qg6 {[%emt 0:00:17]} 51. Rg1 {[%emt 0:00:07]} Qh5 {[%emt 0:00:15]} 52. Rg3 {[%emt 0:00:23]} Qxh4+ {[%emt 0:00:06]} 53. Kg1 {[%emt 0:00:06]} Qh5 {[%emt 0:00:29]} 54. Kf1 {[%emt 0:00:23]} Qh1+ {[%emt 0:00:07]} 55. Rg1 {[%emt 0:00:01]} Qh3+ {[%emt 0:00:02]} 56. Ke1 {[%emt 0:00:18]} Rd8 {[%emt 0:00:09]} 57. Qa2 {[%emt 0:01:21]} Qh4+ {[%emt 0:00:18]} 58. Kf1 {[%emt 0:00:15]} Rd1# {[%emt 0:00:05]} 0-1

[Event "African Games-chT 2019"]
[Site "Casablanca"]
[Date "2019.08.24"]
[Round "5.28"]
[White "Eshete, Ruth Leykun"]
[Black "Youwou Pedhom, Grace Christie"]
[Result "0-1"]
[ECO "E90"]
[WhiteElo "1495"]
[BlackElo "1640"]
[Annotator "NA"]
[PlyCount "117"]
[EventDate "2019.08.24"]
[EventType "team-tourn"]
[EventCountry "MAR"]
[SourceTitle "playchess.com"]
[Source "ChessBase"]
[SourceQuality "1"]
[WhiteTeam "Ethiopia"]
[WhiteTeamCountry "ETH"]
[TimeControl "900+10"]

1. d4 {[%emt 0:00:00]} Nf6 {[%emt 0:00:00]} 2. c4 {[%emt 0:00:01]} g6 {[%emt 0:00:00]} 3. Nc3 {[%emt 0:00:03]} Bg7 {[%emt 0:00:01]} 4. e4 {[%emt 0:00:12]} d6 {[%emt 0:00:29]} 5. Nf3 {[%emt 0:00:09]} O-O {[%emt 0:01:21]} 6. Bd3 {[%emt 0:00:39]} Re8 {[%emt 0:00:04]} 7. O-O {[%emt 0:00:48]} Bg4 {[%emt 0:00:21]} 8. h3 {[%emt 0:00:25]} Bxf3 {[%emt 0:00:03]} 9. Qxf3 {[%emt 0:00:07]} e5 {[%emt 0:00:37]} 10. d5 {[%emt 0:01:18]} Nbd7 {[%emt 0:02:10]} 11. Bg5 {[%emt 0:01:00]} c6 {[%emt 0:01:45]} 12. Rac1 {[%emt 0:01:42]} h6 {[%emt 0:01:11]} 13. Be3 {[%emt 0:00:58]} cxd5 {[%emt 0:00:29]} 14. cxd5 {[%emt 0:00:28]} b6 {[%emt 0:00:07]} 15. Nb5 {[%emt 0:00:09]} Nc5 {[%emt 0:00:35]} 16. Bb1 {[%emt 0:01:01]} Re7 {[%emt 0:00:38]} 17. b4 {[%emt 0:01:10]} Ncd7 {[%emt 0:01:10]} 18. Rc6 {[%emt 0:00:54]} a6 {[%emt 0:01:15]} 19. Nxd6 {[%emt 0:01:07]} b5 {[%emt 0:00:47]} 20. Nb7 {[%emt 0:00:26]} Qf8 {[%emt 0:01:09]} 21. Nc5 {[%emt 0:01:08]} Nb8 {[%emt 0:00:37]} 22. Rxf6 {[%emt 0:00:21]} Bxf6 {[%emt 0:00:45]} 23. Qxf6 {[%emt 0:00:07]} Nd7 {[%emt 0:00:30]} 24. Nxd7 {[%emt 0:00:53]} Rxd7 {[%emt 0:00:03]} 25. Qxe5 {[%emt 0:00:03]} Re8 {[%emt 0:00:10]} 26. Qf4 {[%emt 0:00:10]} h5 {[%emt 0:00:28]} 27. a3 {[%emt 0:00:29]} f6 {[%emt 0:00:51]} 28. Rc1 {[%emt 0:00:40]} Qg7 {[%emt 0:00:21]} 29. Bd4 {[%emt 0:00:28]} Rf7 {[%emt 0:00:17]} 30. Rc6 {[%emt 0:00:03]} g5 {[%emt 0:00:29]} 31. Qf5 {[%emt 0:00:23]} Ref8 {[%emt 0:00:29]} 32. Rxa6 {[%emt 0:00:08]} h4 {[%emt 0:00:13]} 33. Rb6 {[%emt 0:00:06]} Qh6 {[%emt 0:00:12]} 34. Be3 {[%emt 0:00:20]} Kh8 {[%emt 0:00:11]} 35. Rxb5 {[%emt 0:00:17]} Rg7 {[%emt 0:00:23]} 36. d6 {[%emt 0:00:05]} Qg6 {[%emt 0:00:04]} 37. Qxg6 {[%emt 0:00:14]} Rxg6 {[%emt 0:00:02]} 38. d7 {[%emt 0:00:03]} Rg7 {[%emt 0:00:17]} 39. Rd5 {[%emt 0:00:32]} Rd8 {[%emt 0:00:02]} 40. b5 {[%emt 0:00:49]} Rgxd7 {[%emt 0:00:02]} 41. Rxd7 {[%emt 0:00:06]} Rxd7 {[%emt 0:00:02]} 42. Bc2 {[%emt 0:00:12]} Rc7 {[%emt 0:00:21]} 43. Ba4 {[%emt 0:00:14]} Rc3 {[%emt 0:00:11]} 44. b6 {[%emt 0:00:15]} Rc8 {[%emt 0:00:46]} 45. b7 {[%emt 0:00:13]} Rb8 {[%emt 0:00:01]} 46. Bc6 Kg8 {[%emt 0:00:28]} 47. Ba7 {[%emt 0:00:05]} Rxb7 {[%emt 0:00:08]} 48. Bxb7 {[%emt 0:00:04]} Kf7 {[%emt 0:00:02]} 49. Bd5+ {[%emt 0:00:14]} Ke7 {[%emt 0:00:03]} 50. a4 {[%emt 0:00:04]} Kd6 {[%emt 0:00:05]} 51. a5 {[%emt 0:00:09]} f5 {[%emt 0:00:04]} 52. a6 {[%emt 0:00:16]} fxe4 {[%emt 0:00:13]} 53. Bxe4 {[%emt 0:00:02]} Kc7 {[%emt 0:00:02]} 54. Bd4 {[%emt 0:00:04]} Kb8 {[%emt 0:00:07]} 55. a7+ {[%emt 0:00:03]} Kc7 {[%emt 0:00:06]} 56. a8=Q {[%emt 0:00:08]} Kd7 {[%emt 0:00:13]} 57. Qc6+ {[%emt 0:00:04]} Ke7 {[%emt 0:00:03]} 58. Bf6+ {[%emt 0:00:06]} Kf7 {[%emt 0:00:09]} 59. Bxg5 {[%emt 0:00:12]} 0-1

[Event "African Games-chT 2019"]
[Site "Casablanca"]
[Date "2019.08.24"]
[Round "5.30"]
[White "Traore, Bakary"]
[Black "Naipal, Hoolan"]
[Result "1-0"]
[ECO "C94"]
[WhiteElo "2189"]
[BlackElo "1785"]
[Annotator "NA"]
[PlyCount "76"]
[EventDate "2019.08.24"]
[EventType "team-tourn"]
[EventCountry "MAR"]
[SourceTitle "playchess.com"]
[Source "ChessBase"]
[SourceQuality "1"]
[WhiteTeam "Mali"]
[BlackTeam "Mauritius"]
[WhiteTeamCountry "MLI"]
[BlackTeamCountry "MRI"]
[TimeControl "900+10"]

1. e4 {[%emt 0:00:00]} e5 {[%emt 0:00:00]} 2. Nf3 {[%emt 0:00:00]} Nc6 {[%emt 0:00:00]} 3. Bb5 {[%emt 0:00:00]} a6 {[%emt 0:00:00]} 4. Ba4 {[%emt 0:00:00]} Nf6 {[%emt 0:00:00]} 5. O-O {[%emt 0:00:00]} Be7 {[%emt 0:00:09]} 6. Re1 {[%emt 0:00:05]} b5 {[%emt 0:00:02]} 7. Bb3 {[%emt 0:00:01]} d6 {[%emt 0:00:10]} 8. c3 {[%emt 0:00:03]} O-O {[%emt 0:00:04]} 9. h3 {[%emt 0:00:01]} Nb8 {[%emt 0:00:29]} 10. d3 {[%emt 0:00:15]} Nbd7 {[%emt 0:00:20]} 11. Nbd2 {[%emt 0:00:04]} Bb7 {[%emt 0:00:25]} 12. Nf1 {[%emt 0:00:12]} Re8 {[%emt 0:00:29]} 13. Ng3 {[%emt 0:00:13]} Nc5 {[%emt 0:00:52]} 14. Bc2 {[%emt 0:00:22]} g6 {[%emt 0:00:10]} 15. Bh6 {[%emt 0:00:24]} Bf8 {[%emt 0:00:08]} 16. Qd2 {[%emt 0:00:12]} Bxh6 {[%emt 0:02:43]} 17. Qxh6 {[%emt 0:00:04]} Qe7 {[%emt 0:00:06]} 18. b4 {[%emt 0:02:19]} Ncd7 {[%emt 0:00:44]} 19. Bb3 {[%emt 0:00:09]} Qf8 {[%emt 0:00:25]} 20. Qg5 {[%emt 0:00:23]} Qg7 {[%emt 0:00:28]} 21. a4 {[%emt 0:00:21]} h6 {[%emt 0:00:37]} 22. Qd2 {[%emt 0:00:07]} c5 {[%emt 0:03:43]} 23. axb5 {[%emt 0:00:44]} axb5 {[%emt 0:00:02]} 24. Ra5 {[%emt 0:00:42]} cxb4 {[%emt 0:02:55]} 25. cxb4 {[%emt 0:00:18]} Rxa5 {[%emt 0:00:14]} 26. bxa5 {[%emt 0:00:03]} Nc5 {[%emt 0:00:10]} 27. Bc2 {[%emt 0:00:41]} Ra8 {[%emt 0:00:57]} 28. Ra1 {[%emt 0:00:24]} Nfd7 {[%emt 0:01:38]} 29. Qb4 {[%emt 0:00:57]} Ba6 {[%emt 0:01:23]} 30. Nf1 {[%emt 0:01:23]} Nf8 {[%emt 0:00:25]} 31. Ne3 {[%emt 0:00:11]} Nfe6 {[%emt 0:00:03]} 32. Nd5 {[%emt 0:00:10]} Rb8 {[%emt 0:00:05]} 33. Rd1 {[%emt 0:00:40]} Qf8 {[%emt 0:00:17]} 34. d4 {[%emt 0:00:23]} exd4 {[%emt 0:00:02]} 35. Nxd4 {[%emt 0:00:02]} Nxd4 {[%emt 0:00:03]} 36. Qxd4 {[%emt 0:00:07]} Qg7 {[%emt 0:00:24]} 37. Nf6+ {[%emt 0:00:09]} Kh8 {[%emt 0:00:02]} 38. Qxd6 {[%emt 0:00:06]} b4 1-0